lending/lending_fUSD_20260119
["ID","MTS","AMOUNT","RATE_DAILY","PERIOD"]
[402697586,1768805615731,-500.0,0.00043076,120]
[402697587,1768805615776,-410.76,0.00043076,120]
[402697588,1768805615823,-500.0,0.00043076,120]
[402697589,1768805615870,-465.0,0.00043076,120]
[402697590,1768805615923,-500.0,0.00043076,120]
[402697591,1768805615970,-180.05,0.00043076,120]
[402697592,1768805616019,-500.0,0.00043076,120]
[402697593,1768805616074,-500.0,0.00043076,120]
[402697594,1768805616124,-500.0,0.00043076,120]
[402697595,1768805616171,-500.0,0.00043076,120]
[402697596,1768805616218,-547.04,0.00043076,120]
[402697597,1768805616265,-510.81015946,0.00043076,120]
[402697598,1768805616314,-500.0,0.00043076,120]
[402697599,1768805616361,-500.0,0.00043076,120]
[402697600,1768805616407,-526.04,0.00043076,120]
[402697601,1768805616451,-500.0,0.00043076,120]
[402697602,1768805616497,-564.45,0.00043076,120]
[402697603,1768805616546,-514.84306432,0.00043076,120]
[402697604,1768805616820,-500.0,0.00043076,120]
[402697605,1768805616867,-500.0,0.00043076,120]
[402697606,1768805616919,-504.36816445,0.00043076,120]
[402697607,1768805616967,-512.82576906,0.00043076,120]
[402697608,1768805617016,-640.44,0.00043076,120]
[402697609,1768805617068,-645.75,0.00043076,60]
[402697610,1768805617116,-500.0,0.00043076,120]
[402697611,1768805617165,-500.0,0.00043076,120]
[402697612,1768805617212,-500.0,0.00043076,120]
[402697613,1768805617259,-253.89,0.00043076,120]
[402697614,1768805617305,-516.25143498,0.00043076,120]
[402697615,1768805617350,-500.0,0.00043076,120]
[402697616,1768805617395,-500.0,0.00043076,120]
[402697617,1768805617441,-500.0,0.00043076,120]
[402697618,1768805617487,-500.0,0.00043076,120]
[402697619,1768805617532,-512.80930732,0.00043076,120]
[402697620,1768805617577,-576.43,0.00043076,120]
[402697621,1768805617621,-500.0,0.00043076,120]
[402697622,1768805617668,-500.0,0.00043076,120]
[402697623,1768805617715,-500.0,0.00043076,120]
[402697624,1768805617763,-500.0,0.00043076,120]
[402697625,1768805617809,-298.04,0.00043076,120]
[402697626,1768805617855,-500.0,0.00043076,120]
[402697627,1768805617900,-500.0,0.00043076,120]
[402697628,1768805617949,-500.0,0.00043076,120]
[402697629,1768805618006,-500.0,0.00043076,120]
[402697630,1768805618056,-179.69,0.00043076,120]
[402697631,1768805618106,-500.0,0.00043076,120]
[402697632,1768805618163,-342.09,0.00043076,120]
[402697633,1768805618220,-500.0,0.00043076,120]
[402697634,1768805618270,-500.0,0.00043076,120]
[402697635,1768805618316,-500.0,0.00043076,120]
[402697636,1768805618362,-500.0,0.00043076,120]
[402697637,1768805618410,-500.0,0.00043076,120]
[402697638,1768805618456,-500.0,0.00043076,120]
[402697639,1768805618500,-500.0,0.00043076,120]
[402697640,1768805618546,-500.0,0.00043076,120]
[402697641,1768805618591,-500.0,0.00043076,120]
[402697642,1768805618635,-500.0,0.00043076,120]
[402697643,1768805618680,-558.79764833,0.00043076,120]
[402697644,1768805618725,-500.0,0.00043076,120]
[402697645,1768805618771,-500.0,0.00043076,120]
[402697646,1768805618817,-506.44342833,0.00043076,120]
[402697647,1768805618862,-500.0,0.00043076,120]
[402697648,1768805618910,-500.0,0.00043076,120]
[402697649,1768805618959,-500.0,0.00043076,120]
[402697650,1768805619007,-500.0,0.00043076,120]
[402697651,1768805619055,-500.0,0.00043076,120]
[402697652,1768805619103,-500.0,0.00043076,120]
[402697653,1768805619153,-567.07,0.00043076,120]
[402697654,1768805619204,-326.4,0.00043076,120]
[402697655,1768805619256,-522.6,0.00043076,120]
[402697656,1768805619306,-500.0,0.00043076,120]
[402697657,1768805619354,-167.12,0.00043076,120]
[402697658,1768805619402,-601.58,0.00043076,120]
[402697659,1768805619450,-507.86864715,0.00043076,120]
[402697660,1768805619498,-500.0,0.00043076,120]
[402697661,1768805619546,-530.98,0.00043076,120]
[402697662,1768805619594,-602.7,0.00043076,120]
[402697663,1768805619639,-538.81758191,0.00043076,120]
[402697664,1768805619684,-500.0,0.00043076,120]
[402697665,1768805619728,-502.43550931,0.00043076,120]
[402697666,1768805619771,-500.0,0.00043076,120]
[402697667,1768805619815,-557.68,0.00043076,120]
[402697668,1768805619860,-500.0,0.00043076,120]
[402697669,1768805619908,-213.47207022,0.00043076,120]
[402697670,1768805619959,-514.79,0.00043076,120]
[402697671,1768805620007,-500.0,0.00043076,120]
[402697672,1768805620055,-587.61,0.00043076,120]
[402697673,1768805620100,-500.0,0.00043076,30]
[402697674,1768805620148,-500.0,0.00043076,120]
[402697675,1768805620194,-500.0,0.00043076,120]
[402697676,1768805620243,-500.0,0.00043076,120]
[402697677,1768805620289,-597.37,0.00043076,120]
[402697678,1768805620335,-500.0,0.00043076,120]
[402697679,1768805620380,-500.0,0.00043076,120]
[402697680,1768805620427,-500.0,0.00043076,120]
[402697681,1768805620472,-500.0,0.00043076,120]
[402697682,1768805620518,-500.0,0.00043076,120]
[402697683,1768805620565,-390.18,0.00043076,120]
[402697684,1768805620611,-263.56,0.00043076,120]
[402697685,1768805620658,-500.0,0.00043076,120]
[402697686,1768805620705,-500.0,0.00043076,120]
[402697687,1768805620750,-500.0,0.00043076,120]
[402697688,1768805620795,-500.0,0.00043076,120]
[402697689,1768805620840,-228.81502609,0.00043076,120]
[402697690,1768805620888,-631.39,0.00043076,120]
[402697691,1768805620935,-500.0,0.00043076,120]
[402697692,1768805620981,-500.0,0.00043076,120]
[402697693,1768805621030,-158.33,0.00043076,120]
[402697694,1768805621076,-500.0,0.00043076,120]
[402697695,1768805621125,-240.68,0.00043076,120]
[402697696,1768805621176,-500.0,0.00043076,120]
[402697697,1768805621225,-500.0,0.00043076,120]
[402697698,1768805621272,-500.0,0.00043076,120]
[402697699,1768805621530,-500.0,0.00043076,120]
[402697700,1768805621579,-601.67,0.00043076,120]
[402697701,1768805621624,-500.0,0.00043076,120]
[402697702,1768805621670,-500.0,0.00043076,60]
[402697703,1768805621714,-500.0,0.00043076,120]
[402697704,1768805621757,-500.0,0.00043076,120]
[402697705,1768805621802,-500.0,0.00043076,120]
[402697706,1768805621847,-500.0,0.00043076,120]
[402697707,1768805621894,-500.0,0.00043076,120]
[402697708,1768805621942,-500.0,0.00043076,120]
[402697709,1768805621990,-500.0,0.00043076,120]
[402697710,1768805622038,-375.98,0.00043076,120]
[402697711,1768805622085,-500.0,0.00043076,120]
[402697712,1768805622134,-500.0,0.00043076,120]
[402697713,1768805622183,-591.87,0.00043076,120]
[402697714,1768805622230,-500.0,0.00043076,120]
[402697715,1768805622278,-605.08,0.00043076,120]
[402697716,1768805622324,-500.0,0.00043076,120]
[402697717,1768805622370,-500.0,0.00043076,120]
[402697718,1768805622415,-500.0,0.00043076,120]
[402697719,1768805622460,-500.0,0.00043076,120]
[402697720,1768805622504,-500.0,0.00043076,120]
[402697721,1768805622548,-500.0,0.00043076,120]
[402697722,1768805622595,-381.4,0.00043076,120]
[402697723,1768805622639,-500.0,0.00043076,90]
[402697724,1768805622684,-500.0,0.00043076,120]
[402697725,1768805622726,-500.0,0.00043076,120]
[402697726,1768805622768,-542.06,0.00043076,120]
[402697727,1768805622810,-500.0,0.00043076,120]
[402697728,1768805622852,-481.74,0.00043076,120]
[402697729,1768805622896,-500.0,0.00043076,120]
[402697730,1768805622942,-500.0,0.00043076,120]
[402697731,1768805622990,-500.0,0.00043076,120]
[402697732,1768805623036,-500.0,0.00043076,120]
[402697733,1768805623083,-544.99182725,0.00043076,120]
[402697734,1768805623131,-500.0,0.00043076,120]
[402697735,1768805623177,-372.91,0.00043076,120]
[402697736,1768805623224,-500.0,0.00043076,120]
[402697737,1768805623271,-500.0,0.00043076,120]
[402697738,1768805623316,-601.38742539,0.00043076,120]
[402697739,1768805623368,-500.0,0.00043076,120]
[402697740,1768805623415,-500.0,0.00043076,120]
[402697741,1768805623462,-500.0,0.00043076,120]
[402697742,1768805623507,-500.0,0.00043076,120]
[402697743,1768805623554,-516.79,0.00043076,120]
[402697744,1768805623599,-500.0,0.00043076,120]
[402697745,1768805623646,-426.65,0.00043076,120]
[402697746,1768805623691,-500.0,0.00043076,120]
[402697747,1768805623735,-500.0,0.00043076,120]
[402697748,1768805623778,-250.04,0.00043076,120]
[402697749,1768805623821,-500.0,0.00043076,120]
[402697750,1768805623864,-512.66,0.00043076,120]
[402697751,1768805623913,-500.0,0.00043076,120]
[402697752,1768805623962,-500.0,0.00043076,120]
[402697753,1768805624010,-500.0,0.00043076,120]
[402697754,1768805624058,-500.0,0.00043076,120]
[402697755,1768805624110,-500.0,0.00043076,120]
[402697756,1768805624158,-508.41779534,0.00043076,120]
[402697757,1768805624206,-500.0,0.00043076,120]
[402697758,1768805624255,-500.0,0.00043076,120]
[402697759,1768805624301,-500.0,0.00043076,120]
[402697760,1768805624347,-161.00552046,0.00043076,120]
[402697761,1768805624392,-500.0,0.00043076,120]
[402697762,1768805624439,-500.0,0.00043076,120]
[402697763,1768805624489,-500.0,0.00043076,120]
[402697764,1768805624538,-500.0,0.00043076,120]
[402697765,1768805624585,-500.0,0.00043076,120]
[402697766,1768805624633,-316.4,0.00043076,120]
[402697767,1768805624679,-500.0,0.00043076,120]
[402697768,1768805624725,-500.0,0.00043076,120]
[402697769,1768805624772,-500.0,0.00043076,120]
[402697770,1768805624818,-500.0,0.00043076,120]
[402697771,1768805624864,-500.0,0.00043076,120]
[402697772,1768805624914,-565.03,0.00043076,120]
[402697773,1768805624962,-500.0,0.00043076,120]
[402697774,1768805625010,-364.39443455,0.00043076,120]
[402697775,1768805625057,-500.0,0.00043076,120]
[402697776,1768805625106,-500.0,0.00043076,120]
[402697777,1768805625154,-500.0,0.00043076,120]
[402697778,1768805625202,-519.69800423,0.00043076,120]
[402697779,1768805625252,-500.0,0.00043076,120]
[402697780,1768805625302,-500.0,0.00043076,120]
[402697781,1768805625351,-500.0,0.00043076,120]
[402697782,1768805625399,-500.0,0.00043076,120]
[402697783,1768805625446,-500.0,0.00043076,120]
[402697784,1768805625493,-500.0,0.00043076,120]
[402697785,1768805625539,-500.0,0.00043076,120]
[402697786,1768805625586,-500.0,0.00043076,120]
[402697787,1768805625632,-512.42,0.00043076,120]
[402697788,1768805625679,-500.0,0.00043076,120]
[402697789,1768805625724,-500.0,0.00043076,120]
[402697790,1768805625782,-500.0,0.00043076,120]
[402697791,1768805625831,-500.0,0.00043076,120]
[402697792,1768805625879,-504.42245513,0.00043076,120]
[402697793,1768805625932,-500.0,0.00043076,120]
[402697794,1768805626283,-500.0,0.00043076,120]
[402697795,1768805626336,-500.0,0.00043076,120]
[402697796,1768805626383,-500.0,0.00043076,120]
[402697797,1768805626430,-500.0,0.00043076,120]
[402697798,1768805626479,-500.0,0.00043076,120]
[402697799,1768805626524,-500.0,0.00043076,120]
[402697800,1768805626569,-646.57,0.00043076,120]
[402697801,1768805626614,-298.04929493,0.00043076,120]
[402697802,1768805626661,-500.0,0.00043076,120]
[402697803,1768805626708,-500.0,0.00043076,120]
[402697804,1768805626753,-500.0,0.00043076,120]
[402697805,1768805626800,-500.0,0.00043076,120]
[402697806,1768805626847,-500.0,0.00043076,120]
[402697807,1768805626893,-330.82,0.00043076,120]
[402697808,1768805626939,-500.0,0.00043076,120]
[402697809,1768805626987,-500.0,0.00043076,120]
[402697810,1768805627035,-437.41795661,0.00043076,120]
[402697811,1768805627083,-500.0,0.00043076,120]
[402697812,1768805627132,-500.0,0.00043076,120]
[402697813,1768805627180,-500.0,0.00043076,120]
[402697814,1768805627226,-500.0,0.00043076,120]
[402697815,1768805627271,-500.0,0.00043076,120]
[402697816,1768805627316,-500.0,0.00043076,120]
[402697817,1768805627362,-192.3,0.00043076,120]
[402697818,1768805627414,-569.32,0.00043076,120]
[402697819,1768805627463,-500.0,0.00043076,120]
[402697820,1768805627508,-500.0,0.00043076,120]
[402697821,1768805627552,-509.93,0.00043076,120]
[402697822,1768805627598,-500.0,0.00043076,120]
[402697823,1768805627644,-500.0,0.00043076,120]
[402697824,1768805627690,-500.0,0.00043076,120]
[402697825,1768805627734,-500.0,0.00043076,120]
[402697826,1768805627778,-509.07188407,0.00043076,120]
[402697827,1768805627823,-500.0,0.00043076,120]
[402697828,1768805627869,-500.0,0.00043076,120]
[402697829,1768805627917,-500.0,0.00043076,120]
[402697830,1768805627966,-508.60778368,0.00043076,120]
[402697831,1768805628012,-507.03262684,0.00043076,120]
[402697832,1768805628060,-500.0,0.00043076,120]
[402697833,1768805628107,-533.45,0.00043076,120]
[402697834,1768805628156,-500.0,0.00043076,120]
[402697835,1768805628204,-506.86498866,0.00043076,120]
[402697836,1768805628253,-500.0,0.00043076,120]
[402697837,1768805628302,-500.0,0.00043076,120]
[402697838,1768805628348,-507.03640671,0.00043076,120]
[402697839,1768805628394,-3321.66335672,0.00043076,120]
[402697840,1768805628440,-192.90350373,0.00043076,120]
[402697841,1768805628485,-500.0,0.00043076,120]
[402697842,1768805628531,-645.75165406,0.00043076,120]
[402697843,1768805628576,-569.01874839,0.00043076,120]
[402697844,1768805628623,-500.0,0.00043076,120]
[402697845,1768805628669,-500.0,0.00043076,120]
[402697846,1768805628715,-562.14816029,0.00043076,120]
[402697847,1768805628763,-504.67686708,0.00043076,120]
[402697848,1768805628812,-500.0,0.00043076,120]
[402697849,1768805628858,-500.0,0.00043076,120]
[402697850,1768805628910,-500.0,0.00043076,120]
[402697851,1768805628961,-500.0,0.00043076,120]
[402697852,1768805629009,-500.0,0.00043076,120]
[402697853,1768805629058,-500.0,0.00043076,120]
[402697854,1768805629105,-500.0,0.00043076,120]
[402697855,1768805629151,-156.0,0.00043076,120]
[402697856,1768805629196,-504.27008734,0.00043076,120]
[402697857,1768805629243,-504.27359208,0.00043076,120]
[402697858,1768805629289,-500.0,0.00043076,120]
[402697859,1768805629334,-500.0,0.00043076,120]
[402697860,1768805629380,-512.28,0.00043076,120]
[402697861,1768805629426,-500.0,0.00043076,120]
[402697862,1768805629474,-500.0,0.00043076,120]
[402697863,1768805629520,-500.0,0.00043076,120]
[402697864,1768805629571,-512.10216713,0.00043076,120]
[402697865,1768805629616,-546.75,0.00043076,120]
[402697866,1768805629662,-500.0,0.00043076,120]
[402697867,1768805629706,-510.99812109,0.00043076,120]
[402697868,1768805629753,-500.0,0.00043076,120]
[402697869,1768805629797,-500.0,0.00043076,120]
[402697870,1768805629841,-500.0,0.00043076,120]
[402697871,1768805629891,-585.56680683,0.00043076,120]
[402697872,1768805629939,-500.0,0.00043076,120]
[402697873,1768805629987,-500.0,0.00043076,120]
[402697874,1768805630035,-500.0,0.00043076,120]
[402697875,1768805630082,-500.0,0.00043076,120]
[402697876,1768805630130,-505.38,0.00043076,120]
[402697877,1768805630177,-500.0,0.00043076,120]
[402697878,1768805630227,-500.0,0.00043076,120]
[402697879,1768805630274,-500.0,0.00043076,120]
[402697880,1768805630320,-500.0,0.00043076,120]
[402697881,1768805630365,-505.9380821,0.00043076,120]
[402697882,1768805630410,-500.0,0.00043076,120]
[402697883,1768805630454,-500.0,0.00043076,120]
[402697884,1768805630499,-170.36,0.00043076,120]
[402697885,1768805630542,-500.0,0.00043076,120]
[402697886,1768805630586,-500.0,0.00043076,120]
[402697887,1768805630633,-500.0,0.00043076,120]
[402697888,1768805630680,-552.16,0.00043076,120]
[402697889,1768805630919,-500.0,0.00043076,120]
[402697890,1768805630969,-500.0,0.00043076,120]
[402697891,1768805631015,-516.33511426,0.00043076,120]
[402697892,1768805631061,-531.25160144,0.00043076,120]
[402697893,1768805631107,-500.0,0.00043076,120]
[402697894,1768805631154,-534.10422837,0.00043076,120]
[402697895,1768805631201,-500.0,0.00043076,120]
[402697896,1768805631248,-500.0,0.00043076,120]
[402697897,1768805631296,-214.31,0.00043076,120]
[402697898,1768805631343,-500.0,0.00043076,120]
[402697899,1768805631390,-500.0,0.00043076,120]
[402697900,1768805631437,-500.0,0.00043076,120]
[402697901,1768805631483,-500.0,0.00043076,120]
[402697902,1768805631532,-500.0,0.00043076,120]
[402697903,1768805631579,-500.0,0.00043076,120]
[402697904,1768805631625,-500.0,0.00043076,120]
[402697905,1768805631672,-512.0546132,0.00043076,120]
[402697906,1768805631720,-507.81115702,0.00043076,120]
[402697907,1768805631763,-507.216484,0.00043076,120]
[402697908,1768805631807,-500.0,0.00043076,120]
[402697909,1768805631852,-500.0,0.00043076,120]
[402697910,1768805631900,-550.16,0.00043076,120]
[402697911,1768805631948,-510.81780517,0.00043076,60]
[402697912,1768805631997,-500.0,0.00043076,120]
[402697913,1768805632045,-500.0,0.00043076,120]
[402697914,1768805632095,-500.0,0.00043076,120]
[402697915,1768805632142,-500.0,0.00043076,60]
[402697916,1768805632188,-500.0,0.00043076,60]
[402697917,1768805632235,-629.19,0.00043076,60]
[402697918,1768805632283,-500.0,0.00043076,120]
[402697919,1768805632330,-500.0,0.00043076,120]
[402697920,1768805632376,-500.0,0.00043076,120]
[402697921,1768805632421,-500.0,0.00043076,120]
[402697922,1768805632467,-500.0,0.00043076,120]
[402697923,1768805632512,-500.0,0.00043076,120]
[402697925,1768805632558,-500.0,0.00043076,120]
[402697926,1768805632602,-383.72,0.00043076,120]
[402697927,1768805632648,-500.0,0.00043076,120]
[402697928,1768805632694,-500.0,0.00043076,120]
[402697929,1768805632738,-213.59,0.00043076,120]
[402697930,1768805632781,-506.34905594,0.00043076,120]
[402697931,1768805632823,-500.0,0.00043076,120]
[402697932,1768805632866,-511.73,0.00043076,120]
[402697933,1768805632912,-500.0,0.00043076,120]
[402697934,1768805632959,-500.0,0.00043076,120]
[402697935,1768805633006,-500.0,0.00043076,120]
[402697936,1768805633053,-500.0,0.00043076,120]
[402697937,1768805633102,-599.39,0.00043076,120]
[402697938,1768805633151,-500.0,0.00043076,120]
[402697939,1768805633199,-500.0,0.00043076,120]
[402697940,1768805633247,-500.0,0.00043076,120]
[402697941,1768805633293,-500.0,0.00043076,120]
[402697942,1768805633342,-500.0,0.00043076,120]
[402697943,1768805633390,-164.91,0.00043076,120]
[402697944,1768805633436,-500.0,0.00043076,120]
[402697945,1768805633482,-500.0,0.00043076,120]
[402697946,1768805633527,-500.0,0.00043076,120]
[402697947,1768805633572,-500.0,0.00043076,120]
[402697948,1768805633617,-500.0,0.00043076,120]
[402697949,1768805633662,-528.17768756,0.00043076,120]
[402697950,1768805633707,-610.02502495,0.00043076,120]
[402697951,1768805633753,-500.0,0.00043076,120]
[402697952,1768805633798,-500.0,0.00043076,120]
[402697953,1768805633844,-429.35,0.00043076,120]
[402697954,1768805633891,-509.79985515,0.00043076,120]
[402697955,1768805633940,-1104.28251674,0.00043076,90]
[402697956,1768805633989,-1032.41396609,0.00043076,45]
[402697957,1768805634038,-2128.0,0.00043076,120]
[402697958,1768805634087,-161.08930799,0.00043076,120]
[402697959,1768805634142,-500.0,0.00043076,120]
[402697960,1768805634190,-648.61,0.00043076,120]
[402697961,1768805634239,-500.0,0.00043076,120]
[402697962,1768805634287,-500.0,0.00043076,120]
[402697963,1768805634333,-244.83,0.00043076,120]
[402697964,1768805634380,-500.0,0.00043076,90]
[402697965,1768805634428,-500.0,0.00043076,90]
[402697966,1768805634478,-484.55,0.00043076,90]
[402697967,1768805634524,-500.0,0.00043076,120]
[402697968,1768805634570,-500.0,0.00043076,120]
[402697969,1768805634617,-500.0,0.00043076,120]
[402697970,1768805634664,-500.0,0.00043076,120]
[402697971,1768805634712,-362.75,0.00043076,120]
[402697972,1768805634759,-500.0,0.00043076,120]
[402697973,1768805634804,-371.21,0.00043076,120]
[402697974,1768805634852,-500.0,0.00043076,120]
[402697975,1768805634901,-500.0,0.00043076,120]
[402697976,1768805634961,-500.0,0.00043076,30]
[402697977,1768805635010,-294.54591913,0.00043076,120]
[402697978,1768805635057,-534.05,0.00043076,120]
[402697979,1768805635106,-500.0,0.00043076,120]
[402697980,1768805635154,-500.0,0.00043076,120]
[402697981,1768805635204,-500.0,0.00043076,120]
[402697982,1768805635253,-524.65790683,0.00043076,120]
[402697983,1768805635301,-500.0,0.00043076,120]
[402697984,1768805635348,-504.04210421,0.00043076,120]
[402697985,1768805635396,-500.0,0.00043076,120]
[402697986,1768805635626,-505.57553175,0.00043076,120]
[402697987,1768805635673,-437.073662,0.00043076,120]
[402697988,1768805635720,-500.0,0.00043076,120]
[402697989,1768805635767,-479.04783566,0.00043076,120]
[402697990,1768805635814,-500.0,0.00043076,120]
[402697991,1768805635861,-502.75273569,0.00043076,120]
[402697992,1768805635909,-501.25621275,0.00043076,120]
[402697993,1768805635958,-502.31193861,0.00043076,120]
[402697994,1768805636006,-371.49446941,0.00043076,120]
[402697995,1768805636054,-500.0,0.00043076,120]
[402697996,1768805636100,-502.09120246,0.00043076,120]
[402697997,1768805636147,-500.0,0.00043076,120]
[402697998,1768805636194,-508.83846567,0.00043076,120]
[402697999,1768805636242,-500.0,0.00043076,120]
[402698000,1768805636291,-268.07,0.00043076,120]
[402698001,1768805636337,-508.73440274,0.00043076,120]
[402698002,1768805636384,-500.0,0.00043076,120]
[402698003,1768805636430,-293.95,0.00043076,120]
[402698004,1768805636478,-500.0,0.00043076,120]
[402698005,1768805636525,-500.0,0.00043076,120]
[402698006,1768805636572,-273.6,0.00043076,120]
[402698007,1768805636620,-500.0,0.00043076,120]
[402698008,1768805636667,-521.31533624,0.00043076,120]
[402698009,1768805636714,-569.29247241,0.00043076,120]
[402698010,1768805636758,-562.86091424,0.00043076,120]
[402698011,1768805636803,-629.53,0.00043076,120]
[402698012,1768805636848,-500.0,0.00043076,120]
[402698013,1768805636895,-500.0,0.00043076,120]
[402698014,1768805636943,-397.38,0.00043076,120]
[402698015,1768805636994,-500.0,0.00043076,120]
[402698016,1768805637049,-466.25,0.00043076,120]
[402698017,1768805637107,-504.07,0.00043076,120]
[402698018,1768805637163,-500.0,0.00043076,120]
[402698019,1768805637213,-231.82,0.00043076,120]
[402698020,1768805637260,-400.0,0.00043076,30]
[402698021,1768805637307,-400.0,0.00043076,30]
[402698022,1768805637353,-400.0,0.00043076,30]
[402698023,1768805637401,-400.0,0.00043076,30]
[402698024,1768805637448,-400.0,0.00043076,30]
[402698025,1768805637493,-400.0,0.00043076,30]
[402698026,1768805637539,-400.0,0.00043076,30]
[402698027,1768805637585,-400.0,0.00043076,30]
[402698028,1768805637630,-400.0,0.00043076,30]
[402698029,1768805637675,-400.0,0.00043076,30]
[402698030,1768805637721,-400.0,0.00043076,30]
[402698031,1768805637768,-400.0,0.00043076,30]
[402698032,1768805637814,-400.0,0.00043076,30]
[402698033,1768805637860,-400.0,0.00043076,30]
[402698034,1768805637909,-400.0,0.00043076,30]
[402698035,1768805637957,-400.0,0.00043076,30]
[402698036,1768805638005,-418.04433868,0.00043076,30]
[402698037,1768805638067,-559.95697757,0.00043076,120]
[402698038,1768805638117,-500.0,0.00043076,120]
[402698039,1768805638165,-508.7985869,0.00043076,120]
[402698040,1768805638215,-500.0,0.00043076,120]
[402698041,1768805638265,-202.42,0.00043076,120]
[402698042,1768805638312,-503.73391166,0.00043076,120]
[402698043,1768805638357,-571.73,0.00043076,120]
[402698045,1768805638404,-500.0,0.00043076,120]
[402698047,1768805638451,-501.97,0.00043076,120]
[402698048,1768805638499,-500.0,0.00043076,120]
[402698049,1768805638545,-171.7,0.00043076,120]
[402698050,1768805638590,-3320.53219697,0.00043076,120]
[402698051,1768805638636,-500.0,0.00043076,120]
[402698052,1768805638684,-500.0,0.00043076,120]
[402698053,1768805638730,-500.0,0.00043076,120]
[402698054,1768805638778,-500.0,0.00043076,120]
[402698055,1768805638824,-501.12315367,0.00043076,120]
[402698056,1768805638869,-583.3415706,0.00043076,120]
[402698057,1768805638918,-596.17,0.00043076,120]
[402698058,1768805638969,-377.85458379,0.00043076,120]
[402698059,1768805639017,-521.33321183,0.00043076,120]
[402698060,1768805639064,-500.0,0.00043076,120]
[402698061,1768805639111,-503.64102233,0.00043076,120]
[402698062,1768805639157,-425.21725403,0.00043076,120]
[402698063,1768805639205,-50000.0,0.00043076,59]
[402698064,1768805639252,-500.0,0.00043076,120]
[402698065,1768805639299,-500.0,0.00043076,120]
[402698066,1768805639349,-576.70836939,0.00043076,120]
[402698067,1768805639399,-500.0,0.00043076,120]
[402698068,1768805639448,-500.0,0.00043076,120]
[402698069,1768805639496,-627.88150825,0.00043076,120]
[402698070,1768805639544,-500.0,0.00043076,120]
[402698071,1768805639593,-500.0,0.00043076,120]
[402698072,1768805639639,-500.0,0.00043076,120]
[402698073,1768805639686,-500.0,0.00043076,120]
[402698074,1768805639732,-500.0,0.00043076,120]
[402698075,1768805639779,-500.0,0.00043076,120]
[402698076,1768805639825,-500.0,0.00043076,120]
[402698077,1768805639874,-500.0,0.00043076,120]
[402698078,1768805639927,-500.0,0.00043076,120]
[402698079,1768805639976,-500.0,0.00043076,120]
[402698080,1768805640025,-500.0,0.00043076,120]
[402698081,1768805640077,-500.0,0.00043076,120]
[402698082,1768805640129,-500.0,0.00043076,120]
[402698083,1768805640394,-500.0,0.00043076,120]
[402698084,1768805640443,-500.0,0.00043076,120]
[402698085,1768805640494,-500.0,0.00043076,120]
[402698086,1768805640543,-500.0,0.00043076,120]
[402698087,1768805640592,-500.0,0.00043076,120]
[402698088,1768805640642,-638.84168217,0.00043076,120]